Cogmind - Beta 11 X8 @@@ ROGUE MODE // 2021.11.24 @ 19:24:39 Player: LU-1G1 Result: Destroyed by C-35 Carver with Improved Concussive RPG Performance ------------- Evolutions (7) 3500 Regions Visited (26) 5200 Robots Destroyed (171) 855 Value Destroyed (6091) 6091 Prototype IDs (71) 1420 Alien Tech Used (2) 400 Bonus (4267) 4267 TOTAL SCORE: 21733 Bonus ------- High Alert Combat Kills 289 Follower Combat Kills 163 Aligned with FarCom 300 Met Data Miner 300 Met Imprinter 300 Met Zhirov 300 Met Warlord at Base 500 MAIN.C Attacked Warlord 500 Warlord Defense Kill 1788 Friendly Fire -173 Cogmind --------- Core Integrity 0/1300 Matter 236/300 Energy 98/100 System Corruption 23% Temperature Cool (4) Movement Hovering (40) Location -3/Research Parts ------- > --- POWER (2) -------- Backup Power III Backup Power III > --- PROPULSION (8) --- Backup Propulsion III Linear Gravjet > --- UTILITY (8) ------ (None) > --- WEAPON (3) ------- Backup Laser III > --- INVENTORY (5) ---- Advanced Force Field XL Autogun Array Peak State ------------ > --- POWER ------------ Vortex Chain Reactor > --- PROPULSION ------- Heavy Treads Heavy Treads Heavy Treads Heavy Treads > --- UTILITY ---------- Advanced Heat Sink Advanced Heat Sink Huge Storage Unit Spectral Analyzer Experimental Signal Interpreter Experimental Phase Shifter Advanced Hacking Suite Advanced System Shield > --- WEAPON ----------- Proton Cannon Long-range Phase Cannon KE Penetrator > --- INVENTORY -------- Reinforced Fission Core Heavy Treads Heavy Treads Heavy Treads Improved Matter Compressor Experimental Weapon Shielding Hardened Medium Armor Plating Advanced Shield Generator Advanced Component Analysis Suite Drone Bay Transdimensional Reconstructor Vortex Rifle Vortex Rifle Vortex Rifle XL Autogun Array RU-N14's Throwing Claymores v3 RU-N14's Throwing Claymores v3 [Rating: 153] Favorites ----------- Power Ion Engine Engine Ion Engine Power Core Micro Fission Core Reactor Vortex Chain Reactor Propulsion Heavy Treads Treads Heavy Treads Wheel Compact Wheel Hover Unit Antigrav System Flight Unit VTOL Module Utility High-capacity Storage Unit Device Advanced Heat Sink Storage High-capacity Storage Unit Processor Spectral Analyzer Hackware Advanced Hacking Suite Protection Improved Medium Armor Plating Weapon Assault Rifle Energy Gun Wave Gun Energy Cannon Long-range Phase Cannon Ballistic Gun Assault Rifle Launcher Rocket Launcher Special Weapon RU-N14's Throwing Claymores v3 Slashing Weapon Phasing Sabre Piercing Weapon Spear Build | -11 -10 -10 -10 -9 -8 -7 -7 -7 -7 -6 -6 -6 -6 -6 -5 -5 -5 -5 -5 -4 -4 -4 -4 -4 -3 -3 ------- Run | Scr Mat Min Exi Min Mat Fac Low Low Zio Pro Fac Low Low Dat Pro Fac Upp Upp Zhi Pro Fac Upp Upp War Pro Res Slots Evolved 14 | . . . . . 4 2 . . . . 2 . . . . 2 . . . . 2 . . . . 2 Power 1 | . . . . . . . . . . . . . . . . . . . . . . . . . . 1 Propulsion 6 | . . . . . 1 2 . . . . 1 . . . . 1 . . . . 1 . . . . . Utility 6 | . . . . . 3 . . . . . 1 . . . . 1 . . . . 1 . . . . . Weapon 1 | . . . . . . . . . . . . . . . . . . . . . . . . . . 1 Parts Attached 186 | 7 4 2 . 5 29 7 5 3 14 3 3 1 1 . 6 13 2 1 13 . 15 . 2 10 3 37 Power 14 | 1 . . . . 2 2 . . . . . . . . 1 3 . . . . 1 . . 1 . 3 Engine 6 | 1 . . . . 2 1 . . . . . . . . . 1 . . . . . . . . . 1 Core 6 | . . . . . . 1 . . . . . . . . 1 2 . . . . 1 . . 1 . . Reactor 2 | . . . . . . . . . . . . . . . . . . . . . . . . . . 2 Propulsion 42 | 2 1 . . . 10 2 2 2 1 . 1 . 1 . 3 1 . . 3 . 4 . . 1 . 8 Treads 17 | 2 1 . . . 6 . . . . . . . . . . . . . . . 4 . . 1 . 3 Leg . | . . . . . . . . . . . . . . . . . . . . . . . . . . . Wheel 1 | . . . . . 1 . . . . . . . . . . . . . . . . . . . . . Hover 7 | . . . . . . 2 . . . . . . . . . 1 . . . . . . . . . 4 Flight 17 | . . . . . 3 . 2 2 1 . 1 . 1 . 3 . . . 3 . . . . . . 1 Utility 62 | 1 2 . . 3 7 1 . 1 10 . 2 . . . 2 4 1 1 8 . 5 . . 2 1 11 Device 20 | . . . . 1 1 1 . . 3 . . . . . 1 3 1 . 5 . 1 . . 1 1 1 Storage 10 | 1 1 . . . 1 . . . . . . . . . . 1 . . 2 . 2 . . . . 2 Processor 11 | . . . . 1 1 . . . 6 . . . . . 1 . . 1 . . . . . 1 . . Hackware 6 | . . . . . 3 . . . . . 1 . . . . . . . . . 1 . . . . 1 Protection 15 | . 1 . . 1 1 . . 1 1 . 1 . . . . . . . 1 . 1 . . . . 7 Artifact . | . . . . . . . . . . . . . . . . . . . . . . . . . . . Weapon 68 | 3 1 2 . 2 10 2 3 . 3 3 . 1 . . . 5 1 . 2 . 5 . 2 6 2 15 Energy Gun 11 | 1 . 1 . . 1 . . . . . . . . . . . . . . . 2 . 1 1 . 4 Energy Cannon 5 | . . . . . . . . . . . . . . . . . . . . . 1 . . 2 1 1 Ballistic Gun 19 | 2 1 . . 1 6 1 3 . . . . . . . . . . . . . 2 . . . . 3 Ballistic Cannon . | . . . . . . . . . . . . . . . . . . . . . . . . . . . Launcher 7 | . . 1 . 1 3 . . . . 2 . . . . . . . . . . . . . . . . Special Weapon 8 | . . . . . . . . . . . . . . . . . . . . . . . 1 3 1 3 Impact Weapon . | . . . . . . . . . . . . . . . . . . . . . . . . . . . Slashing Weapon 16 | . . . . . . . . . 3 1 . 1 . . . 5 1 . 2 . . . . . . 3 Piercing Weapon 2 | . . . . . . 1 . . . . . . . . . . . . . . . . . . . 1 Special Melee Weapon . | . . . . . . . . . . . . . . . . . . . . . . . . . . . Unidentified Prototypes 29 | . . . . 1 2 2 . . 6 . . . . . . . . . 3 . 2 . . 3 . 10 Parts Lost 60 | . . 2 . . 11 . 2 1 1 . 2 2 3 1 1 5 . 2 . 2 . . . . 1 24 Power 6 | . . . . . 2 . . . . . . . . . . 1 . 1 . . . . . . . 2 Propulsion 26 | . . . . . 3 . 1 1 . . 1 1 3 . 1 2 . 1 . 2 . . . . . 10 Utility 13 | . . 1 . . 2 . . . 1 . . 1 . . . 2 . . . . . . . . 1 5 Weapon 15 | . . 1 . . 4 . 1 . . . 1 . . 1 . . . . . . . . . . . 7 Highest Loss Streak 10 | . . 2 . . 7 . 2 1 1 . 2 1 2 1 2 3 . 2 . 2 . . . . 1 10 Average Slot Usage (%) 82 | . 98 86 85 92 80 77 80 97 99 100 89 87 62 53 63 70 59 60 68 80 76 78 78 77 74 55 Engine 6 | . 14 14 14 14 7 6 . . . . . . . . . . . . . . . . . . . 1 Core 2 | . . . . . . . 7 7 7 7 6 6 1 . 3 3 5 4 . . 4 5 5 5 5 . Treads 19 | . 27 28 28 28 23 . . . . . . . . . . . . . . . 16 21 21 21 21 11 Flight 4 | . . . . . 1 15 19 36 38 38 34 29 20 13 18 18 11 10 18 23 3 . . . . . Device 3 | . . . . . . 5 7 7 2 . . . . . 3 7 5 5 4 5 6 10 10 11 14 7 Storage 8 | . 14 14 14 14 9 7 7 7 7 7 6 6 1 . . 2 5 5 5 5 5 5 5 5 5 3 Processor 8 | . . . . 5 8 7 7 7 20 30 26 24 20 20 24 21 17 21 23 23 19 15 15 13 10 5 Hackware 3 | . . . . . 1 16 15 8 2 . 3 6 6 6 6 5 5 5 5 5 6 5 5 5 5 4 Protection 4 | . 12 1 . 1 13 . . 5 2 . . . . . . . . . . . 3 5 5 5 5 4 Energy Gun 1 | . . 5 . . 2 . . . . . . . . . . . . . . . 3 5 5 4 1 1 Energy Cannon 1 | . . . . . . . . . . . . . . . . . . . . . 1 5 5 4 3 4 Ballistic Gun 10 | . 28 15 14 15 8 2 11 15 4 . . . . . . . . . . . 1 . . . . . Launcher 3 | . . 6 14 12 3 . . . . 6 4 . . . . . . . . . . . . . . . Slashing Weapon 1 | . . . . . . . . . 10 7 6 12 13 13 6 3 1 . 2 11 2 . . . . . Naked Turns 21 | . . . . . . . . . . . . . . . . . . . . . . . . . . 21 Heaviest Build 151 | 13 52 52 50 55 62 17 18 20 25 18 15 18 18 7 10 17 19 15 21 21 112 112 112 133 133 151 Greatest Support 280 | 40 40 40 40 40 60 17 29 29 23 21 27 23 19 9 17 26 18 18 32 23 280 280 280 280 140 280 Greatest Overweight (x) 4 | . 1 1 1 1 2 . 1 . 1 . . . . . . 1 1 . 1 1 1 . . . . 4 Average Overweight (x) . | . . 1 1 1 . . . . . . . . . . . . . . . . . . . . . . Largest Inventory Capacity 25 | 8 20 20 20 20 20 8 8 8 8 8 8 8 8 5 5 10 10 10 10 10 25 25 25 25 25 25 Average Capacity 17 | 6 17 20 20 20 19 8 8 8 8 8 8 8 5 5 5 7 10 10 10 10 21 25 25 25 25 17 Most Carried 25 | 6 14 16 20 20 20 8 8 8 8 8 8 8 8 5 5 10 10 10 10 10 25 25 25 25 25 25 Average Carried 16 | 3 11 14 17 19 18 8 8 7 7 8 8 7 5 5 5 6 9 10 9 10 20 25 25 24 24 15 Final Capacity 25 | 8 20 20 20 20 8 8 8 8 8 8 8 8 5 5 5 10 10 10 10 10 25 25 25 25 25 5 Final Carried 25 | 6 14 16 20 20 8 8 8 8 8 8 8 7 5 5 5 10 10 10 10 10 25 25 25 25 24 5 Class Distribution -------------------- 69% | Mutant 7% | Scavenger-Sprinter 7% | Hacker-Mutant 5% | Sprinter 4% | Scavenger-Mutant 3% | Commander-Mutant Dominant Class ---------------- Mutant | -10/Materials Mutant | -10/Mines Mutant | -10/Exiles Mutant | -9/Mines Scavenger-Mutant | -8/Materials Hacker-Mutant | -7/Factory Scavenger-Sprinter | -7/Lower Caves Scavenger-Sprinter | -7/Lower Caves Scavenger-Sprinter | -7/Zion Scavenger-Sprinter | -6/Proximity Caves Scavenger-Sprinter | -6/Factory Sprinter | -6/Lower Caves Mutant | -6/Lower Caves Sprinter | -6/Data Miner Scavenger-Sprinter | -5/Proximity Caves Scavenger-Scout | -5/Factory Sprinter | -5/Upper Caves Sprinter | -5/Upper Caves Sprinter | -5/Zhirov Sprinter | -4/Proximity Caves Mutant | -4/Factory Mutant | -4/Upper Caves Mutant | -4/Upper Caves Mutant | -4/Warlord Mutant | -3/Proximity Caves Mutant | -3/Research Resources | -11 -10 -10 -10 -9 -8 -7 -7 -7 -7 -6 -6 -6 -6 -6 -5 -5 -5 -5 -5 -4 -4 -4 -4 -4 -3 -3 ----------- Run | Scr Mat Min Exi Min Mat Fac Low Low Zio Pro Fac Low Low Dat Pro Fac Upp Upp Zhi Pro Fac Upp Upp War Pro Res Matter Collected 3750 | 268 587 42 . 236 661 153 186 96 39 181 . . 15 . 149 . 125 10 . . 235 280 65 90 35 297 Remotely . | . . . . . . . . . . . . . . . . . . . . . . . . . . . Salvage Created 5176 | 58 953 44 . 315 979 . 48 72 . 45 39 . . . 307 . 252 . . . 235 237 151 203 287 951 Parts 285 | 2 82 4 . 12 69 . 2 5 . 6 5 . . . 11 . 1 . . . 10 1 5 17 18 35 Haulers Intercepted 4 | . 2 . . . 1 . . . . . . . . . . . . . . . . . . . . 1 Recyclers Shooed 3 | . . . . . 1 . . . . . . . . . . . . . . . 1 . . . . 1 Parts Field Recycled . | . . . . . . . . . . . . . . . . . . . . . . . . . . . Retrieved Matter . | . . . . . . . . . . . . . . . . . . . . . . . . . . . Parts Self-Destructed 112 | . . . . . . . 7 1 . 5 . 3 . . 5 . 1 . . . . 1 5 70 14 . Prevented 7 | . . . . . . . 2 . . 2 . . . . . . . . . . . . . 3 . . Kills | -11 -10 -10 -10 -9 -8 -7 -7 -7 -7 -6 -6 -6 -6 -6 -5 -5 -5 -5 -5 -4 -4 -4 -4 -4 -3 -3 ------- Run | Scr Mat Min Exi Min Mat Fac Low Low Zio Pro Fac Low Low Dat Pro Fac Upp Upp Zhi Pro Fac Upp Upp War Pro Res Combat Hostiles Destroyed 121 | . 16 3 . 7 23 . 2 3 . 3 2 . . . 4 . . . . . 3 . 3 21 12 19 Melee 7 | . . . . . . . . . . . . . . . 4 . . . . . 1 . . . . 2 Guns 35 | . 16 3 . 1 5 . 2 3 . . . . . . . . . . . . 1 . 1 . 1 2 Cannons 15 | . . . . . . . . . . . . . . . . . . . . . 1 . 2 2 3 7 AOE 62 | . . . . 6 18 . . . . 3 2 . . . . . . . . . . . . 19 7 7 Classes Destroyed 18 | 1 9 . . 1 1 . . . . . . . . . . . . . . . . . . 2 1 3 Worker 11 | . 4 . . 1 3 . . . . . 2 . . . . . . . . . . . . . . 1 Builder 12 | . 2 . . . 6 . . . . . . . . . . . . . . . . . . . . 4 Tunneler 1 | . 1 . . . . . . . . . . . . . . . . . . . . . . . . . Hauler 4 | . 2 . . . 1 . . . . . . . . . . . . . . . . . . . . 1 Recycler 7 | 1 1 . . 2 3 . . . . . . . . . . . . . . . . . . . . . Mechanic 3 | . 1 . . . . . . . . . . . . . . . . . . . . . . . . 2 Operator 6 | . 5 . . . 1 . . . . . . . . . . . . . . . . . . . . . Watcher 5 | . 3 . . . 2 . . . . . . . . . . . . . . . . . . . . . Swarmer 49 | . 6 3 . 3 . . 2 3 . 3 2 . . . 4 . . . . . . . 3 13 7 . Saboteur 1 | . . . . . . . . . . . . . . . . . . . . . . . . 1 . . Grunt 41 | . 10 . . 3 15 . . . . . . . . . . . . . . . 2 . . 6 3 2 Brawler 1 | . . . . . . . . . . . . . . . . . . . . . . . . 1 . . Protector 1 | . . . . . . . . . . . . . . . . . . . . . . . . . . 1 Sentry 6 | . . . . 1 4 . . . . . . . . . . . . . . . 1 . . . . . Specialist 1 | . . . . . . . . . . . . . . . . . . . . . . . . . . 1 Hunter 13 | . . . . . 4 . . . . . . . . . . . . . . . . . . . . 9 Programmer 6 | . . . . . . . . . . . . . . . . . . . . . . . . . 2 4 Striker 2 | . . . . . . . . . . . . . . . . . . . . . . . . . . 2 Thug 1 | . . . . . 1 . . . . . . . . . . . . . . . . . . . . . Best Kill Streak 19 | 1 8 3 . 3 9 . 2 3 . 3 4 . . . 4 . . . . . 2 . 3 12 4 19 Combat Bots Only 12 | . 7 3 . 3 5 . 2 3 . 3 2 . . . 4 . . . . . 2 . 3 12 4 11 Max Kills in Single Turn 4 | 1 2 1 . 2 3 . 1 1 . 3 4 . . . 1 . . . . . 1 . 1 4 3 4 Gunslinging . | . . . . . . . . . . . . . . . . . . . . . . . . . . . Exploded 4 | . . . . 2 3 . . . . 3 2 . . . . . . . . . . . . 4 3 2 Melee 1 | . . . . . . . . . . . . . . . 1 . . . . . 1 . . . . 1 Uniques/NPCs Destroyed . | . . . . . . . . . . . . . . . . . . . . . . . . . . . Combat | -11 -10 -10 -10 -9 -8 -7 -7 -7 -7 -6 -6 -6 -6 -6 -5 -5 -5 -5 -5 -4 -4 -4 -4 -4 -3 -3 -------- Run | Scr Mat Min Exi Min Mat Fac Low Low Zio Pro Fac Low Low Dat Pro Fac Upp Upp Zhi Pro Fac Upp Upp War Pro Res Damage Taken 13511 | . 437 90 . 119 1711 28 311 354 26 14 265 147 195 90 384 355 . 81 . 178 528 . 76 375 445 7302 Core 2822 | . 67 . . 38 298 . 107 149 . 14 98 45 57 45 298 115 . . . 61 87 . . 53 23 1267 Absorbed by Shields 336 | . . . . . . . . . . . . . . . . 18 . . . . . . . 191 . 127 Reduced by Siege Mode 336 | . . . . . . . . . . . . . . . . . . . . . . . . . . 336 Core Remaining (%) 66 | 100 . . . 58 45 . . . . 61 . . . . 36 . . . . 82 . . . . 85 . Volleys Fired 381 | 1 93 5 . 18 84 1 9 8 2 3 8 . . . . . . . . . 9 10 12 19 28 71 Largest 3 | 2 2 2 . 2 2 1 2 2 2 1 1 . . . . . . . . . 2 2 2 2 2 3 Hottest 234 | 70 40 40 . 43 84 28 51 46 46 30 30 . . . . . . . . . 186 186 186 145 145 234 Shots Fired 623 | 2 186 9 . 21 135 1 10 16 4 3 8 . . . . . . . . . 18 20 21 20 31 118 Gun 403 | 2 186 9 . 6 96 1 10 16 4 . . . . . . . . . . . 9 10 9 1 2 42 Cannon 135 | . . . . . . . . . . . . . . . . . . . . . 9 10 12 13 23 68 Launcher 65 | . . . . 15 39 . . . . 3 8 . . . . . . . . . . . . . . . Special 20 | . . . . . . . . . . . . . . . . . . . . . . . . 6 6 8 Kinetic 318 | 1 186 9 . 6 66 1 10 16 4 . . . . . . . . . . . . . . . . 19 Thermal 187 | 1 . . . . 30 . . . . . . . . . . . . . . . 18 20 21 13 23 61 Explosive 85 | . . . . 15 39 . . . . 3 8 . . . . . . . . . . . . 6 6 8 Electromagnetic 9 | . . . . . . . . . . . . . . . . . . . . . . . . . . 9 Entropic 24 | . . . . . . . . . . . . . . . . . . . . . . . . 1 2 21 Robot Hit Streak 13 | 2 6 10 . 13 12 . 3 4 . 5 1 . . . . . . . . . 9 4 8 4 10 10 Robot Miss Streak 6 | . 5 . . 1 4 . 1 3 . . 2 . . . . . . . . . 1 2 2 6 2 6 Penetration Max 1 | . . . . . . . . . . . . . . . . . . . . . . . . . . 1 Secondary Targets 1 | . 1 . . . . . . . . . . . . . . . . . . . . . . . . . Max Gunslinging Chain 1 | . 1 . . . . . . . . . . . . . . . . . . . . . . . . . Shots Hit Robots 372 | 2 102 9 . 6 72 . 7 8 . 1 1 . . 1 8 2 7 . . . 19 11 11 6 20 79 Core Hits 312 | 2 50 3 . 15 92 . 3 5 . 3 8 . . . 7 . 3 . . . 9 3 4 32 16 57 Critical Kills 3 | . 1 . . . 1 . . . . . . . . . . . . . . . . . . . 1 . Critical Parts Destroyed 2 | . 1 . . . . . . . . . . . . . . . . . . . . . . . . 1 Critical Strikes 10 | . 2 . . . 2 . . . . . . . . . . . . . . . . 1 . . 1 4 Burn 3 | . . . . . 1 . . . . . . . . . . . . . . . . 1 . . . 1 Meltdown 1 | . . . . . . . . . . . . . . . . . . . . . . . . . 1 . Destroy 3 | . 2 . . . 1 . . . . . . . . . . . . . . . . . . . . . Sever 2 | . . . . . . . . . . . . . . . . . . . . . . . . . . 2 Detonate 1 | . . . . . . . . . . . . . . . . . . . . . . . . . . 1 Melee Attacks 108 | . . . . . . 9 7 . . . 3 29 6 6 8 18 7 . . . 4 . . . . 11 Impact . | . . . . . . . . . . . . . . . . . . . . . . . . . . . Slashing 91 | . . . . . . . . . . . 3 29 6 6 8 18 7 . . . 4 . . . . 10 Piercing 17 | . . . . . . 9 7 . . . . . . . . . . . . . . . . . . 1 Sneak Attacks 1 | . . . . . . . . . . . . . . 1 . . . . . . . . . . . . Combat Hostiles . | . . . . . . . . . . . . . . . . . . . . . . . . . . . Follow-up Attacks . | . . . . . . . . . . . . . . . . . . . . . . . . . . . Damage Inflicted 23613 | 22 1390 112 . 550 3921 . 162 177 26 147 296 . . 175 678 107 829 . . . 689 360 322 4638 2414 6598 Guns 4183 | 22 1321 112 . 59 856 . 162 177 . . . . . . . . . . . . 167 144 143 46 46 928 Cannons 3433 | . . . . . . . . . . . . . . . . . . . . . 287 216 179 226 669 1856 Explosions 12922 | . . . . 482 3065 . . . . 147 296 . . . . . . . . . . . . 4258 1535 3139 Melee 2353 | . . . . . . . . . . . . . . 175 678 107 829 . . . 184 . . . . 380 Ramming 174 | . 69 . . 9 . . . . 26 . . . . . . . . . . . 51 . . . . 19 Kinetic 2698 | 9 1321 112 . 59 556 . 162 177 . . . . . . . . . . . . . . . . . 302 Thermal 4415 | 13 . . . . 300 . . . . . . . . . . . . . . . 454 360 322 226 669 2071 Explosive 12561 | . . . . 482 3065 . . . . 147 296 . . . . . . . . . . . . 4258 1535 2778 Electromagnetic 206 | . . . . . . . . . . . . . . . . . . . . . . . . . . 206 Impact . | . . . . . . . . . . . . . . . . . . . . . . . . . . . Slashing 2901 | . . . . . . . . . . . . . . 175 678 107 829 . . . 184 . . 108 164 656 Piercing . | . . . . . . . . . . . . . . . . . . . . . . . . . . . Entropic 658 | . . . . . . . . . . . . . . . . . . . . . . . . 46 46 566 Highest Corruption 23 | . . . . . . 2 2 2 4 4 . 3 6 6 6 4 4 4 4 2 . . . . 2 23 Average Corruption 5 | . . . . . . 2 2 2 3 4 . 3 5 6 5 4 4 4 2 1 . . . . 1 12 Corruption Purged 4 | . . . . . . . . . . . . . . . 1 . . . 3 . . . . . . . Effects 66 | . . . . . . 3 5 2 6 3 . 1 7 2 2 . 3 1 2 . . . . . 3 26 Message Errors 19 | . . . . . . . 4 . 2 . . 1 2 . 1 . 2 . . . . . . . 1 6 Matter Fused 11 | . . . . . . . . . 1 . . . 1 2 . . . . 1 . . . . . . 6 Heat Flow Errors 6 | . . . . . . . . 1 1 1 . . . . . . . 1 1 . . . . . . 1 Energy Discharges 10 | . . . . . . 1 1 1 1 2 . . 1 . . . . . . . . . . . . 3 Parts Rejected 1 | . . . . . . . . . . . . . . . . . . . . . . . . . . 1 Data Loss (minor) 10 | . . . . . . 2 . . 1 . . . 2 . . . 1 . . . . . . . 2 2 Data Loss (major) 4 | . . . . . . . . . . . . . 1 . 1 . . . . . . . . . . 2 Misdirections 4 | . . . . . . . . . . . . . . . . . . . . . . . . . . 4 Weapon Failures 1 | . . . . . . . . . . . . . . . . . . . . . . . . . . 1 Overload Shots . | . . . . . . . . . . . . . . . . . . . . . . . . . . . Overflow Damage 860 | . . . . . 70 . . . . . . . . . 73 23 222 . . . 20 24 57 92 107 172 Projectiles 221 | . . . . . . . . . . . . . . . . . . . . . 6 24 57 . 90 44 Explosions 307 | . . . . . 70 . . . . . . . . . . . . . . . . . . 92 17 128 Melee 332 | . . . . . . . . . . . . . . . 73 23 222 . . . 14 . . . . . Knockbacks 4 | . 1 . . . . . . . . . . . . . . . . . . . 2 . . . . 1 Impact 4 | . 1 . . . . . . . . . . . . . . . . . . . 2 . . . . 1 Kinetic . | . . . . . . . . . . . . . . . . . . . . . . . . . . . Secondary . | . . . . . . . . . . . . . . . . . . . . . . . . . . . Self-Inflicted Damage 614 | . . . . 23 252 . . . 26 . 29 . . . . . . . . . . . . . . 284 Shots 16 | . . . . 1 11 . . . . . 1 . . . . . . . . . . . . . . 3 Rammed 17 | . 10 . . 2 . . . . . . . . . . . . . . . . 2 . . . . 3 Targets Rammed 21 | . 13 . . 3 . . . . . . . . . . . . . . . . 2 . . . . 3 Kicked . | . . . . . . . . . . . . . . . . . . . . . . . . . . . Crushed 4 | . 3 . . 1 . . . . . . . . . . . . . . . . . . . . . . Highest Temperature 390 | 30 5 . . 11 390 . 4 176 213 120 12 10 . . . . . 239 71 . 248 244 224 56 144 97 Average Temperature 70 | 18 2 . . 4 121 . 3 41 28 18 3 2 . . . . . 219 51 . 108 106 100 23 68 33 Received Heat Transfer 1282 | . 162 . . 27 477 12 24 . . . 36 9 . 12 18 24 . . . 18 126 . . 31 46 260 Effects 4 | . . . . . 4 . . . . . . . . . . . . . . . . . . . . . Shutdowns 1 | . . . . . 1 . . . . . . . . . . . . . . . . . . . . . Energy Bleed 2 | . . . . . 2 . . . . . . . . . . . . . . . . . . . . . Damage (minor) 1 | . . . . . 1 . . . . . . . . . . . . . . . . . . . . . Siege Activations 2 | . . . . . . . . . . . . . . . . . . . . . . . . . . 2 Total Turns 215 | . . . . . . . . . . . . . . . . . . . . . . . . . . 215 Longest Duration 199 | . . . . . . . . . . . . . . . . . . . . . . . . . . 199 Robots Corrupted 1 | . . . . . . . . . . . . . . . . . . . . . . . . . . 1 Combat Hostiles 1 | . . . . . . . . . . . . . . . . . . . . . . . . . . 1 Parts Fried 1 | . . . . . . . . . . . . . . . . . . . . . . . . . . 1 Impact Corruptions 1 | . . . . . . . . . . . . . . . . . . . . . 1 . . . . . Robots Melted 1 | . . . . . . . . . . . . . . . . . . . . . . . . . 1 . Combat Hostiles 1 | . . . . . . . . . . . . . . . . . . . . . . . . . 1 . Parts Melted 9 | . . . . . . . . . . . . . . . . . . . . . 1 . . . 5 3 Heat Transferred 4862 | 37 . . . . 629 . . . . . . . . . . . . . . . 555 518 407 222 555 1939 Parts Sabotaged 1 | . . . . . . . . . . . . . . . . . . . . . . . . . . 1 Parts Stolen . | . . . . . . . . . . . . . . . . . . . . . . . . . . . Parts Stripped . | . . . . . . . . . . . . . . . . . . . . . . . . . . . Power Chain Reactions 1 | . . . . . . . . . . . . . . . . . . . . . . . . . . 1 Missiles Intercepted . | . . . . . . . . . . . . . . . . . . . . . . . . . . . Alert | -11 -10 -10 -10 -9 -8 -7 -7 -7 -7 -6 -6 -6 -6 -6 -5 -5 -5 -5 -5 -4 -4 -4 -4 -4 -3 -3 ------- Run | Scr Mat Min Exi Min Mat Fac Low Low Zio Pro Fac Low Low Dat Pro Fac Upp Upp Zhi Pro Fac Upp Upp War Pro Res Peak Influence 654 | 5 380 94 . 110 654 345 . . . . 200 . . . . 175 . . . . 80 . . . . 603 Initial 297 | . 3 44 . . 1 297 . . . . 72 . . . . 109 . . . . . . . . . 60 Average 159 | 2 165 42 . 18 449 294 . . . . 123 . . . . 135 . . . . 34 . . . . 334 Maximum Alert Level 2 | . 1 . . . 2 1 . . . . 1 . . . . . . . . . . . . . . 2 Low Security (%) 70 | 100 66 100 . 100 16 9 . . . . 87 . . . . 100 . . . . 100 . . . . 36 Level 1 17 | . 33 . . . 7 90 . . . . 12 . . . . . . . . . . . . . . 18 Level 2 12 | . . . . . 75 . . . . . . . . . . . . . . . . . . . . 45 Level 3 . | . . . . . . . . . . . . . . . . . . . . . . . . . . . Level 4 . | . . . . . . . . . . . . . . . . . . . . . . . . . . . Level 5 . | . . . . . . . . . . . . . . . . . . . . . . . . . . . High Security . | . . . . . . . . . . . . . . . . . . . . . . . . . . . Max Security . | . . . . . . . . . . . . . . . . . . . . . . . . . . . Squads Dispatched 28 | . 6 . . 1 8 . . . . . . . 1 . . 1 . . . . 2 . . . . 9 Investigation 11 | . 2 . . 1 3 . . . . . . . . . . . . . . . 1 . . . . 4 Extermination 2 | . . . . . . . . . . . . . . . . . . . . . . . . . . 2 Reinforcement 9 | . 4 . . . 3 . . . . . . . . . . 1 . . . . . . . . . 1 Assault 3 | . . . . . 1 . . . . . . . 1 . . . . . . . . . . . . 1 Garrison 3 | . . . . . 1 . . . . . . . . . . . . . . . 1 . . . . 1 Intercept . | . . . . . . . . . . . . . . . . . . . . . . . . . . . Construction Impeded 1 | . . . . . 1 . . . . . . . . . . . . . . . . . . . . . Haulers Reinforced . | . . . . . . . . . . . . . . . . . . . . . . . . . . . Active Scanning Responses . | . . . . . . . . . . . . . . . . . . . . . . . . . . . Cargo Convoy Interrupts 1 | . . . . . . . . . . . . . . . . . . . . . . . . . . 1 Stealth | -11 -10 -10 -10 -9 -8 -7 -7 -7 -7 -6 -6 -6 -6 -6 -5 -5 -5 -5 -5 -4 -4 -4 -4 -4 -3 -3 --------- Run | Scr Mat Min Exi Min Mat Fac Low Low Zio Pro Fac Low Low Dat Pro Fac Upp Upp Zhi Pro Fac Upp Upp War Pro Res Distress Signals 8 | . 4 . . . 2 . . . . . . . . . . . . . . . . . . . . 2 Communications Jammed . | . . . . . . . . . . . . . . . . . . . . . . . . . . . Distress Signals . | . . . . . . . . . . . . . . . . . . . . . . . . . . . Times Spotted 285 | . 41 3 . 7 36 2 4 3 . 6 12 9 13 4 12 4 3 1 . 11 6 . 4 41 14 49 Peak Tracking Total 14 | . 6 2 . 3 5 1 3 3 . 4 10 7 10 4 5 2 3 1 . 11 3 . 4 14 5 11 Tactical Retreats 26 | . 2 . . . 1 . . . . 1 1 3 6 . 3 1 2 . . . . . 1 . 2 3 Traps | -11 -10 -10 -10 -9 -8 -7 -7 -7 -7 -6 -6 -6 -6 -6 -5 -5 -5 -5 -5 -4 -4 -4 -4 -4 -3 -3 ------- Run | Scr Mat Min Exi Min Mat Fac Low Low Zio Pro Fac Low Low Dat Pro Fac Upp Upp Zhi Pro Fac Upp Upp War Pro Res Traps Triggered 8 | . 1 . . . 2 1 . . . . . . . . . 1 . . . . 1 . . . . 2 Indirectly . | . . . . . . . . . . . . . . . . . . . . . . . . . . . Trap Hack Attempts . | . . . . . . . . . . . . . . . . . . . . . . . . . . . Triggered . | . . . . . . . . . . . . . . . . . . . . . . . . . . . Disarmed . | . . . . . . . . . . . . . . . . . . . . . . . . . . . Reprogrammed . | . . . . . . . . . . . . . . . . . . . . . . . . . . . Reused . | . . . . . . . . . . . . . . . . . . . . . . . . . . . Traps Extracted . | . . . . . . . . . . . . . . . . . . . . . . . . . . . Installed . | . . . . . . . . . . . . . . . . . . . . . . . . . . . Triggered 10 | . . . . . . . 1 . . 1 . . . . . . . . . . . 1 . 7 . . Machines | -11 -10 -10 -10 -9 -8 -7 -7 -7 -7 -6 -6 -6 -6 -6 -5 -5 -5 -5 -5 -4 -4 -4 -4 -4 -3 -3 ---------- Run | Scr Mat Min Exi Min Mat Fac Low Low Zio Pro Fac Low Low Dat Pro Fac Upp Upp Zhi Pro Fac Upp Upp War Pro Res Machines Disabled 12 | . . . . . 5 . . . . . 1 . . 1 . . . . . . . . . . . 5 Max in Single Turn 1 | . . . . . 1 . . . . . 1 . . 1 . . . . . . . . . . . 1 Garrison Access 2 | . . . . . 1 . . . . . . . . . . . . . . . . . . . . 1 Machines Sabotaged . | . . . . . . . . . . . . . . . . . . . . . . . . . . . Garrisons Compromised . | . . . . . . . . . . . . . . . . . . . . . . . . . . . Overloaded Fab Kills . | . . . . . . . . . . . . . . . . . . . . . . . . . . . Hacking | -11 -10 -10 -10 -9 -8 -7 -7 -7 -7 -6 -6 -6 -6 -6 -5 -5 -5 -5 -5 -4 -4 -4 -4 -4 -3 -3 --------- Run | Scr Mat Min Exi Min Mat Fac Low Low Zio Pro Fac Low Low Dat Pro Fac Upp Upp Zhi Pro Fac Upp Upp War Pro Res Machines Accessed 43 | . 6 . 2 2 3 8 1 . 1 . . . . 3 . 3 1 . 4 . 3 . 1 1 . 4 Terminals 16 | . 4 . . . 1 5 . . . . . . . . . 3 . . . . 2 . . . . 1 Fabricators 1 | . . . . . . 1 . . . . . . . . . . . . . . . . . . . . Repair Stations 5 | . 1 . . . 1 1 . . . . . . . . . . . . . . . . . . . 2 Recycling Units 1 | . 1 . . . . . . . . . . . . . . . . . . . . . . . . . Scanalyzers 2 | . . . . . 1 . . . . . . . . . . . . . . . 1 . . . . . Garrison Access 2 | . . . . . . 1 . . . . . . . . . . . . . . . . . . . 1 Total Hacks 121 | . 11 . 2 2 11 20 1 . 3 . . . . 24 . 8 1 . 17 . 8 . 1 1 . 11 Successful 80 | . 5 . 2 2 6 9 1 . 3 . . . . 24 . 3 1 . 17 . 3 . 1 1 . 2 Failed 41 | . 6 . . . 5 11 . . . . . . . . . 5 . . . . 5 . . . . 9 Catastrophic 8 | . 2 . . . 1 2 . . . . . . . . . 1 . . . . . . . . . 2 Database Lockouts . | . . . . . . . . . . . . . . . . . . . . . . . . . . . Manual 24 | . 5 . 1 . 3 5 . . . . . . . . . 3 . . . . . . . 1 . 6 Terminals 42 | . 7 . . . 4 12 . . . . . . . . . 8 . . . . 7 . . . . 4 Fabricators 4 | . . . . . . 4 . . . . . . . . . . . . . . . . . . . . Repair Stations 12 | . 3 . . . 2 3 . . . . . . . . . . . . . . . . . . . 4 Recycling Units 1 | . 1 . . . . . . . . . . . . . . . . . . . . . . . . . Scanalyzers 6 | . . . . . 5 . . . . . . . . . . . . . . . 1 . . . . . Garrison Access 4 | . . . . . . 1 . . . . . . . . . . . . . . . . . . . 3 Terminal Hacks 63 | . 1 . 2 2 1 4 1 . 3 . . . . 24 . 3 1 . 17 . 2 . 1 1 . . Record 12 | . . . 1 . . . . . . . . . . 6 . . . . 5 . . . . . . . Part Schematic 17 | . . . . . . . . . 3 . . . . 10 . . . . 4 . . . . . . . Robot Schematic 5 | . . . . . . . . . . . . . . 5 . . . . . . . . . . . . Robot Analysis 4 | . . . . . . . . . . . . . . . . . . . 4 . . . . . . . Prototype ID Bank 7 | . . . . . . . . . . . . . . 3 . . . . 4 . . . . . . . Open Door 6 | . . . . 2 . . 1 . . . . . . . . . 1 . . . . . 1 1 . . Open DSF 3 | . . . . . . 1 . . . . . . . . . 1 . . . . 1 . . . . . Branch Access Points 3 | . . . . . 1 1 . . . . . . . . . . . . . . 1 . . . . . Unreport Threat 1 | . . . . . . 1 . . . . . . . . . . . . . . . . . . . . Registered Components 1 | . . . . . . . . . . . . . . . . 1 . . . . . . . . . . Registered Prototypes 1 | . . . . . . . . . . . . . . . . 1 . . . . . . . . . . Zone Layout 2 | . 1 . . . . 1 . . . . . . . . . . . . . . . . . . . . EX-Prototype ID Bank 1 | . . . 1 . . . . . . . . . . . . . . . . . . . . . . . Fabricator Hacks 1 | . . . . . . 1 . . . . . . . . . . . . . . . . . . . . Build 1 | . . . . . . 1 . . . . . . . . . . . . . . . . . . . . Repair Station Hacks 7 | . 2 . . . 1 2 . . . . . . . . . . . . . . . . . . . 2 Scan Component 3 | . 1 . . . . 1 . . . . . . . . . . . . . . . . . . . 1 Repair 2 | . 1 . . . . 1 . . . . . . . . . . . . . . . . . . . . Refit 2 | . . . . . 1 . . . . . . . . . . . . . . . . . . . . 1 Recycling Unit Hacks . | . . . . . . . . . . . . . . . . . . . . . . . . . . . Scanalyzer 5 | . . . . . 4 . . . . . . . . . . . . . . . 1 . . . . . Insert Component 3 | . . . . . 2 . . . . . . . . . . . . . . . 1 . . . . . Analyze 2 | . . . . . 2 . . . . . . . . . . . . . . . . . . . . . Garrison Access Hacks . | . . . . . . . . . . . . . . . . . . . . . . . . . . . Unauthorized Hacks 4 | . 2 . . . . 2 . . . . . . . . . . . . . . . . . . . . Terminals 1 | . 1 . . . . . . . . . . . . . . . . . . . . . . . . . Assimilate 1 | . 1 . . . . . . . . . . . . . . . . . . . . . . . . . Fabricators 2 | . . . . . . 2 . . . . . . . . . . . . . . . . . . . . Liberate 1 | . . . . . . 1 . . . . . . . . . . . . . . . . . . . . Fabnet 1 | . . . . . . 1 . . . . . . . . . . . . . . . . . . . . Repair Stations . | . . . . . . . . . . . . . . . . . . . . . . . . . . . Recycling Units 1 | . 1 . . . . . . . . . . . . . . . . . . . . . . . . . Tunnel 1 | . 1 . . . . . . . . . . . . . . . . . . . . . . . . . Scanalyzers . | . . . . . . . . . . . . . . . . . . . . . . . . . . . Garrison Access . | . . . . . . . . . . . . . . . . . . . . . . . . . . . Data Cores Recovered . | . . . . . . . . . . . . . . . . . . . . . . . . . . . Used . | . . . . . . . . . . . . . . . . . . . . . . . . . . . Hacking Detections 23 | . 5 . . . 2 7 . . . . . . . . . 2 . . . . 3 . . . . 4 Full Trace Events 5 | . 1 . . . 1 . . . . . . . . . . . . . . . . . . . . 3 Feedback Events 1 | . . . . . . . . . . . . . . . . . . . . . . . . . . 1 Corruption 1 | . . . . . . . . . . . . . . . . . . . . . . . . . . 1 Feedback Blocked . | . . . . . . . . . . . . . . . . . . . . . . . . . . . Robot Schematics Acquired 9 | . . . . . . . . . 4 . . . . 5 . . . . . . . . . . . . Robots Built 2 | . . . . . . 2 . . . . . . . . . . . . . . . . . . . . Authchips . | . . . . . . . . . . . . . . . . . . . . . . . . . . . Time 116 | . . . . . . 116 . . . . . . . . . . . . . . . . . . . . Total Robot Build Rating 6 | . . . . . . 6 . . . . . . . . . . . . . . . . . . . . Part Schematics Acquired 33 | . . . . . 2 . . . 17 . . . . 10 . . . . 4 . . . . . . . Parts Built . | . . . . . . . . . . . . . . . . . . . . . . . . . . . Authchips . | . . . . . . . . . . . . . . . . . . . . . . . . . . . Time . | . . . . . . . . . . . . . . . . . . . . . . . . . . . Total Part Build Rating . | . . . . . . . . . . . . . . . . . . . . . . . . . . . Parts Repaired 2 | . 1 . . . . 1 . . . . . . . . . . . . . . . . . . . . Time 32 | . 13 . . . . 19 . . . . . . . . . . . . . . . . . . . . Parts Recycled . | . . . . . . . . . . . . . . . . . . . . . . . . . . . Recycled Matter . | . . . . . . . . . . . . . . . . . . . . . . . . . . . Retrieved Matter . | . . . . . . . . . . . . . . . . . . . . . . . . . . . Retrieved Components . | . . . . . . . . . . . . . . . . . . . . . . . . . . . Parts Scanalyzed 2 | . . . . . 2 . . . . . . . . . . . . . . . . . . . . . Part Schematics Acquired 2 | . . . . . 2 . . . . . . . . . . . . . . . . . . . . . Parts Damaged . | . . . . . . . . . . . . . . . . . . . . . . . . . . . Bothacking | -11 -10 -10 -10 -9 -8 -7 -7 -7 -7 -6 -6 -6 -6 -6 -5 -5 -5 -5 -5 -4 -4 -4 -4 -4 -3 -3 ------------ Run | Scr Mat Min Exi Min Mat Fac Low Low Zio Pro Fac Low Low Dat Pro Fac Upp Upp Zhi Pro Fac Upp Upp War Pro Res Used RIF Installer . | . . . . . . . . . . . . . . . . . . . . . . . . . . . Robots Hacked . | . . . . . . . . . . . . . . . . . . . . . . . . . . . Non-combat . | . . . . . . . . . . . . . . . . . . . . . . . . . . . Combat . | . . . . . . . . . . . . . . . . . . . . . . . . . . . Robot Hacks Applied . | . . . . . . . . . . . . . . . . . . . . . . . . . . . Relay Couplers Released 2 | . . . . . 2 . . . . . . . . . . . . . . . . . . . . . Machine Destruction 2 | . . . . . 2 . . . . . . . . . . . . . . . . . . . . . Fabnet Peak Effective % . | . . . . . . . . . . . . . . . . . . . . . . . . . . . Robots Rewired 5 | . . . . . . . . . . . . . . . . . . . . . . . . 5 . . Allies Hacked . | . . . . . . . . . . . . . . . . . . . . . . . . . . . Hacks Repelled . | . . . . . . . . . . . . . . . . . . . . . . . . . . . Allies | -11 -10 -10 -10 -9 -8 -7 -7 -7 -7 -6 -6 -6 -6 -6 -5 -5 -5 -5 -5 -4 -4 -4 -4 -4 -3 -3 -------- Run | Scr Mat Min Exi Min Mat Fac Low Low Zio Pro Fac Low Low Dat Pro Fac Upp Upp Zhi Pro Fac Upp Upp War Pro Res Total Allies 7 | . . . . . . 2 . . . . . . . . . . . . . . . . . 5 . . Largest Group 5 | . . . . . . 2 . . . . . . . . . . . . . . . . . 5 . . Highest-Rated Group 313 | . . . . . . 38 . . . . . . . . . . . . . . . . . 313 . . Highest-Rated Ally 68 | . . . . . . 19 . . . . . . . . . . . . . . . . . 68 . . Total Orders 1 | . . . . . . 1 . . . . . . . . . . . . . . . . . . . . STAY 1 | . . . . . . 1 . . . . . . . . . . . . . . . . . . . . Ally Attacks 18 | . . . . . . . . . . . . . . . . . . . . . . . . 18 . . Total Damage 786 | . . . . . . . . . . . . . . . . . . . . . . . . 786 . . Kills 6 | . . . . . . . . . . . . . . . . . . . . . . . . 6 . . Allies Corrupted . | . . . . . . . . . . . . . . . . . . . . . . . . . . . Allies Melted . | . . . . . . . . . . . . . . . . . . . . . . . . . . . Intel | -11 -10 -10 -10 -9 -8 -7 -7 -7 -7 -6 -6 -6 -6 -6 -5 -5 -5 -5 -5 -4 -4 -4 -4 -4 -3 -3 ------- Run | Scr Mat Min Exi Min Mat Fac Low Low Zio Pro Fac Low Low Dat Pro Fac Upp Upp Zhi Pro Fac Upp Upp War Pro Res Robot Analysis Total 4 | . . . . . . . . . . . . . . . . . . . 4 . . . . . . . Derelict Logs Recovered 12 | . . 1 . 1 . . . . . . . 2 . . 2 . 3 . . 2 . . 1 . . . Drone Launches . | . . . . . . . . . . . . . . . . . . . . . . . . . . . Drone Recoveries . | . . . . . . . . . . . . . . . . . . . . . . . . . . . Exploration | -11 -10 -10 -10 -9 -8 -7 -7 -7 -7 -6 -6 -6 -6 -6 -5 -5 -5 -5 -5 -4 -4 -4 -4 -4 -3 -3 ------------- Run | Scr Mat Min Exi Min Mat Fac Low Low Zio Pro Fac Low Low Dat Pro Fac Upp Upp Zhi Pro Fac Upp Upp War Pro Res Turns Passed 12904 | 114 2361 783 675 1665 671 320 276 150 306 125 66 185 194 56 136 262 140 118 126 61 492 403 741 1099 462 917 Spaces Moved 10519 | 60 826 319 281 664 312 677 647 228 1078 331 161 393 352 95 363 515 292 326 152 164 297 235 442 601 198 510 Core 56 | 3 . . . . . . 11 . . . . . . . . 1 . . . . . . . . . 41 Treads 4147 | 57 826 319 281 664 217 . . . . . . . . . . . . . . . 196 235 442 601 198 111 Legs . | . . . . . . . . . . . . . . . . . . . . . . . . . . . Wheels 8 | . . . . . 8 . . . . . . . . . . . . . . . . . . . . . Hover 324 | . . . . . . . 12 . . . . . . . . 13 . . . . . . . . . 299 Flight 5984 | . . . . . 87 677 624 228 1078 331 161 393 352 95 363 501 292 326 152 164 101 . . . . 59 Fastest Speed 20 | 50 160 240 240 240 34 34 30 24 23 23 20 24 27 32 26 26 32 32 26 26 99 160 160 160 160 36 Average Speed 96 | 154 215 240 240 240 127 34 34 25 24 23 23 25 32 32 28 29 36 32 30 26 139 160 160 160 160 85 Slowest Speed 320 | 160 240 240 240 240 240 34 120 30 103 23 24 27 35 32 35 105 107 35 105 99 160 160 160 160 160 320 Overloaded Moves 20 | . . . . . . . . . . . . . . . . . . . . . . . . . . 20 Propulsion Burnouts . | . . . . . . . . . . . . . . . . . . . . . . . . . . . Robots Hopped 31 | . . . . . . 5 1 . . 1 6 . . . . 9 4 2 . 2 . . . . . 1 Cave-ins Triggered 3 | . . . . . . . . . . . . 1 1 . . 1 . . . . . . . . . . Teleports 1 | . . . . . . . . . . . . . . . . . . . . . . . . . . 1 Exploration Rate (%) 51 | 5 91 67 70 99 43 22 73 36 89 53 6 51 66 82 58 16 57 56 61 42 9 47 62 78 43 19 Regions Visited 26 Branch Regions 19 Pre-discovered Areas 8 | . 1 . 1 . . . . . 1 . . . . 1 . . . . 3 . . . 1 . . . Known Exits Taken 18 | . . . . . . 1 . . 1 1 1 1 1 1 1 1 1 1 1 1 1 1 1 1 1 . Unknown Exits Taken 8 | 1 1 1 1 1 1 . 1 1 . . . . . . . . . . . . . . . . . . Scrap Searched 23 | . . 2 . 3 . . 1 1 2 3 . . 1 . 2 . 1 1 . 1 . 2 1 . 2 . Spaces Dug 87 | . . . . . 6 7 2 . . . 10 24 5 . . 15 . . . . . . . . . 18 Terrain Destroyed 819 | . . . . 132 203 7 2 . . 38 60 24 5 . . 15 . . . . 1 4 7 84 112 125 Melee 59 | . . . . . . 7 2 . . . 3 24 5 . . 15 . . . . . . . . . 3 Projectile 44 | . . . . . 1 . . . . . . . . . . . . . . . 1 4 7 2 11 18 AOE 716 | . . . . 132 202 . . . . 38 57 . . . . . . . . . . . . 82 101 104 Terrain Rammed 1 | . . . . . . . . . 1 . . . . . . . . . . . . . . . . . Walls Destroyed . | . . . . . . . . . . . . . . . . . . . . . . . . . . . Machines Disabled 1 | . . . . . . . . . 1 . . . . . . . . . . . . . . . . . Actions | -11 -10 -10 -10 -9 -8 -7 -7 -7 -7 -6 -6 -6 -6 -6 -5 -5 -5 -5 -5 -4 -4 -4 -4 -4 -3 -3 --------- Run | Scr Mat Min Exi Min Mat Fac Low Low Zio Pro Fac Low Low Dat Pro Fac Upp Upp Zhi Pro Fac Upp Upp War Pro Res Total 12402 | 77 1207 328 283 713 460 744 677 305 1120 375 168 440 424 112 378 591 311 335 228 178 352 244 457 719 311 865 Wait 966 | 4 260 . . 14 2 35 9 63 8 38 . 23 65 13 2 28 13 11 54 17 4 . . 17 83 203 Move 10433 | 59 825 318 280 663 311 666 644 227 1077 328 148 391 351 94 362 497 283 321 151 160 297 234 441 600 197 508 Hop 29 | . . . . . . 5 1 . . 1 6 . . . . 8 4 2 . 1 . . . . . 1 Pick Up 71 | 5 9 3 2 4 9 . . 2 4 1 . . . . . 4 . . 4 . 9 . . 6 . 9 Fast Attach 102 | 7 2 . . 2 6 7 4 2 11 . 2 . 1 . 6 6 1 1 8 . 12 . 2 3 1 18 Attach 46 | . . 1 . . 11 . . 1 . . . 1 . . . 7 1 . 4 . 1 . . 1 1 17 Detach 27 | 1 . . . 1 3 1 . 1 3 . . . 1 . . 8 1 . . . 5 . . . . 2 Swap 40 | . 2 1 . 3 12 . 1 . 3 3 1 . . . . . . . 2 . 2 . . 6 1 3 Drop 84 | . 3 . 1 5 22 2 2 1 11 1 . . 1 . . 2 1 . 5 . 8 . 2 9 . 8 Fire 381 | 1 93 5 . 18 84 1 9 8 2 3 8 . . . . . . . . . 9 10 12 19 28 71 Melee 101 | . . . . . . 9 7 . . . 3 24 5 5 8 18 7 . . . 4 . . . . 11 Ram 3 | . . . . . . . . . 1 . . . . . . . . . . . . . . . . 2 Kick . | . . . . . . . . . . . . . . . . . . . . . . . . . . . Crush 18 | . 13 . . 3 . . . . . . . . . . . . . . . . 1 . . . . 1 Escape Stasis 43 | . . . . . . 18 . . . . . 1 . . . 13 . . . . . . . . . 11 Rewire 58 | . . . . . . . . . . . . . . . . . . . . . . . . 58 . . Trap . | . . . . . . . . . . . . . . . . . . . . . . . . . . . Miscellaneous . | . . . . . . . . . . . . . . . . . . . . . . . . . . . Route ------- -11/Scrapyard -10/Materials (discovered 4 exits: [*Mat x2] / [*Min x2]) -10/Mines (discovered 2 exits: [*Mat] / *Exi) -10/Exiles -9/Mines (discovered 2 exits: *Mat x2) -8/Materials -7/Factory (discovered 2 exits: *Low x2) -7/Lower Caves -7/Lower Caves (discovered 2 exits: *Fac / *Zio) -7/Zion -6/Proximity Caves -6/Factory (discovered 2 exits: *Fac / *Low) -6/Lower Caves -6/Lower Caves -6/Data Miner -5/Proximity Caves -5/Factory -5/Upper Caves -5/Upper Caves (discovered 2 exits: *Fac / *Zhi) -5/Zhirov -4/Proximity Caves -4/Factory (discovered 4 exits: *Upp x2 / *Ext x2) -4/Upper Caves -4/Upper Caves -4/Warlord -3/Proximity Caves -3/Research (discovered 2 exits: *Res / Qua) History --------- Turn | Location | Event 26 | -11/Scrapyard | Discovered new exit (range 14) 115 | -11/Scrapyard | Entered Materials 303 | -10/Materials | Build established: Mutant 471 | -10/Materials | Destroyed 7 combat bots 517 | -10/Materials | Discovered new exit (range 10) 651 | -10/Materials | Discovered new exit (range 16) 1265 | -10/Materials | Discovered new exit (range 16) 1529 | -10/Materials | Discovered new exit (range 16) 1739 | -10/Materials | Repaired Lgt. Treads 2476 | -10/Materials | Entered Mines 2865 | -10/Mines | Assembled infested the area 3024 | -10/Mines | Discovered new exit (range 8) 3124 | -10/Mines | Deemed a non-threat by the Exiles lab entrance 3157 | -10/Mines | A weapon hastily lodged in a ceiling crevice suddenly fell to the ground 3247 | -10/Mines | Discovered new exit (range 5) 3259 | -10/Mines | Entered Exiles 3319 | -10/Exiles | Met 8R-AWN 3360 | -10/Exiles | Met EX-HEX 3486 | -10/Exiles | Met EX-DEC 3539 | -10/Exiles | Learned location of Zion (-7) 3582 | -10/Exiles | Met EX-BIN 3616 | -10/Exiles | Aligned with FarCom system 3618 | -10/Exiles | Given EX-Vault access code 3673 | -10/Exiles | Opened EX-Vault 3695 | -10/Exiles | Found XL Autogun Array 3744 | -10/Exiles | Warned to stay clear of 0b10 Research branches 3915 | -10/Exiles | Discovered new exit (range 10) 3934 | -10/Exiles | Left Exiles lab with XL Autogun Array 3934 | -10/Exiles | Entered Mines 3941 | -9/Mines | Received a Rocket Launcher from a helpful Derelict 3994 | -9/Mines | Met a Derelict shopkeep closing up shop 4684 | -9/Mines | Learned Materials emergency access door positions 4736 | -9/Mines | Found the Drone Emporium 4747 | -9/Mines | Found Prototype Device 4747 | -9/Mines | Identified Splice Drone Bay 4879 | -9/Mines | Discovered new exit (range 9) 5371 | -9/Mines | Joined a pair of Derelicts in attacking an 0b10 outpost 5458 | -9/Mines | Discovered new exit (range 8) 5599 | -9/Mines | Entered Materials 5599 | -8/Materials | Evolved 4 slots: Propulsion x1, Utility x3 6225 | -8/Materials | Core integrity fell below 50% 6234 | -8/Materials | Lost 7 parts (1p2n2u2w) 6260 | -8/Materials | Discovered new exit (range 3) 6270 | -8/Materials | Entered Factory 6270 | -7/Factory | Evolved 2 slots: Propulsion x2 6399 | -7/Factory | Identified exit to DSF 6425 | -7/Factory | Fabricated W-25 Informer? 6481 | -7/Factory | Build established: Hacker-Mutant 6498 | -7/Factory | Repaired Lgt. Deuterium Engine 6515 | -7/Factory | Identified exit to Lower Caves 6590 | -7/Factory | Entered Lower Caves 6603 | -7/Lower Caves | Encountered a Warlord checkpoint 6608 | -7/Lower Caves | Spotted B-75 Beast 6860 | -7/Lower Caves | Discovered new exit (range 18) 6866 | -7/Lower Caves | Entered another Lower Caves area 6903 | -7/Lower Caves | Discovered new exit (range 7) 7015 | -7/Lower Caves | Discovered new exit (range 6) 7016 | -7/Lower Caves | Entered Zion 7027 | -7/Zion | Discovered new exit (range 18) 7028 | -7/Zion | Given the Hacking Drone Bay 7029 | -7/Zion | Found Prototype Device 7030 | -7/Zion | Identified Hacking Drone Bay 7053 | -7/Zion | Build established: Scavenger-Sprinter 7056 | -7/Zion | System corruption cleaned by Quarantine Array 7120 | -7/Zion | Found Prototype Processor 7120 | -7/Zion | Identified Exp. Melee Analysis Suite 7122 | -7/Zion | Found Prototype Processor 7122 | -7/Zion | Identified Exp. Armor Integrity Analyzer 7124 | -7/Zion | Found Prototype Processor 7124 | -7/Zion | Identified Exp. Target Analyzer 7127 | -7/Zion | Found Prototype Processor 7127 | -7/Zion | Identified Spectral Analyzer 7129 | -7/Zion | Found Prototype Processor 7129 | -7/Zion | Identified Exp. Signal Interpreter 7131 | -7/Zion | Found Exp. Melee Analysis Suite 7150 | -7/Zion | Visited the Megawrench Repair Shop 7150 | -7/Zion | Megawrench repaired 7 parts 7155 | -7/Zion | Received a visual enhancement algorithm 7252 | -7/Zion | Learned location of Data Miner (-6) 7264 | -7/Zion | Rebuked by Imprinter 7321 | -7/Zion | Identified exit to Proximity Caves 7322 | -7/Zion | Entered Proximity Caves 7444 | -6/Proximity Caves | Discovered new exit (range 14) 7447 | -6/Proximity Caves | Identified exit to Factory 7447 | -6/Proximity Caves | Entered Factory 7447 | -6/Factory | Evolved 2 slots: Propulsion x1, Utility x1 7485 | -6/Factory | Discovered new exit (range 10) 7488 | -6/Factory | Identified exit to Factory 7501 | -6/Factory | Discovered new exit (range 12) 7504 | -6/Factory | Identified exit to Lower Caves 7513 | -6/Factory | Entered Lower Caves 7518 | -6/Lower Caves | Attacked by a faux Warlord 7531 | -6/Lower Caves | Learned Factory terminal intel 7645 | -6/Lower Caves | Crushed by falling debris 7677 | -6/Lower Caves | Discovered new exit (range 5) 7678 | -6/Lower Caves | Identified exit to Lower Caves 7698 | -6/Lower Caves | Entered another Lower Caves area 7732 | -6/Lower Caves | Crushed by falling debris 7736 | -6/Lower Caves | Attracted the attention of an 0b10 outpost 7887 | -6/Lower Caves | Discovered new exit (range 17) 7888 | -6/Lower Caves | Encountered a Warlord checkpoint 7892 | -6/Lower Caves | Identified exit to Data Miner 7892 | -6/Lower Caves | Entered Data Miner 7892 | -6/Data Miner | Discovered new exit (range 6) 7896 | -6/Data Miner | Met Data Miner 7904 | -6/Data Miner | Learned location of Section 7 (-3) 7904 | -6/Data Miner | Acquired the access code to Warlord's prototype stash 7909 | -6/Data Miner | Received God Mode back door access code from Data Miner 7919 | -6/Data Miner | Data Conduit disabled 7948 | -6/Data Miner | Identified exit to Proximity Caves 7948 | -6/Data Miner | Entered Proximity Caves 7951 | -5/Proximity Caves | Learned 4 Factory zone layouts 7956 | -5/Proximity Caves | Attracted the attention of an 0b10 checkpoint 7959 | -5/Proximity Caves | Learned Factory terminal intel 7983 | -5/Proximity Caves | Core integrity fell below 50% 8083 | -5/Proximity Caves | Discovered exit to Factory (range 4) 8084 | -5/Proximity Caves | Entered Factory 8084 | -5/Factory | Evolved 2 slots: Propulsion x1, Utility x1 8085 | -5/Factory | Identified exit to Upper Caves 8087 | -5/Factory | Loaded intel: 25 terminal locations 8231 | -5/Factory | Spotted B-75 Beast 8282 | -5/Factory | Crushed by falling debris 8319 | -5/Factory | Lost 3 parts (1n2u) 8346 | -5/Factory | Entered Upper Caves 8394 | -5/Upper Caves | Attracted the attention of an 0b10 checkpoint 8403 | -5/Upper Caves | Learned Factory emergency access door positions 8420 | -5/Upper Caves | Learned Factory security intel 8443 | -5/Upper Caves | Learned Factory terminal intel 8444 | -5/Upper Caves | Discovered new exit (range 8) 8485 | -5/Upper Caves | Identified exit to Upper Caves 8486 | -5/Upper Caves | Entered another Upper Caves area 8492 | -5/Upper Caves | Discovered new exit (range 5) 8535 | -5/Upper Caves | Spotted B-75 Beast 8591 | -5/Upper Caves | Discovered new exit (range 5) 8593 | -5/Upper Caves | Identified exit to Zhirov 8604 | -5/Upper Caves | Entered Zhirov 8604 | -5/Zhirov | Discovered new exit (range 3) 8611 | -5/Zhirov | Met Zhirov 8621 | -5/Zhirov | Found Alien Artifact 8621 | -5/Zhirov | Identified Integrated Reactor 8621 | -5/Zhirov | Installed Integrated Reactor, increased core energy generation (+10) 8714 | -5/Zhirov | Found Alien Artifact 8722 | -5/Zhirov | Learned location of Quarantine (-3) 8722 | -5/Zhirov | Learned location of Testing (-2) 8722 | -5/Zhirov | Learned location of Command (-1) 8723 | -5/Zhirov | Zhirov requested help retrieving the SGEMP Prototype 8730 | -5/Zhirov | Identified exit to Proximity Caves 8730 | -5/Zhirov | Entered Proximity Caves 8779 | -4/Proximity Caves | Attracted the attention of an 0b10 checkpoint 8785 | -4/Proximity Caves | Learned Research emergency access door positions 8786 | -4/Proximity Caves | Learned location of 2 exits from Research 8788 | -4/Proximity Caves | Discovered new exit (range 6) 8790 | -4/Proximity Caves | Identified exit to Factory 8791 | -4/Proximity Caves | Entered Factory 8791 | -4/Factory | Evolved 2 slots: Propulsion x1, Utility x1 8794 | -4/Factory | Loaded intel: 28 terminal locations 8893 | -4/Factory | Identified exit to Upper Caves 8893 | -4/Factory | Identified exit to Extension 9028 | -4/Factory | Identified Transdimensional Reconstructor 9197 | -4/Factory | Build established: Mutant 9270 | -4/Factory | Garrison activated, responded to threat 9283 | -4/Factory | Entered Upper Caves 9678 | -4/Upper Caves | Discovered new exit (range 8) 9684 | -4/Upper Caves | Identified exit to Upper Caves 9686 | -4/Upper Caves | Entered another Upper Caves area 10009 | -4/Upper Caves | Encountered a Warlord checkpoint 10421 | -4/Upper Caves | Discovered new exit (range 5) 10426 | -4/Upper Caves | Identified exit to Warlord 10427 | -4/Upper Caves | Entered Warlord 10859 | -4/Warlord | Found Prototype Special Weapon 10862 | -4/Warlord | Found Prototype Special Weapon 11060 | -4/Warlord | Visited the Vortex Lab 11072 | -4/Warlord | Warlord's base attacked by MAIN.C 11075 | -4/Warlord | Found Prototype Energy Gun 11078 | -4/Warlord | Found Prototype Energy Gun 11083 | -4/Warlord | Found Prototype Energy Gun 11090 | -4/Warlord | Found Prototype Energy Gun 11090 | -4/Warlord | Identified Vortex Rifle (x4) 11254 | -4/Warlord | Met Warlord 11274 | -4/Warlord | Opened Warlord's prototype stash 11282 | -4/Warlord | Build established: Commander-Mutant 11282 | -4/Warlord | Found Spectral Analyzer 11290 | -4/Warlord | Found Prototype Device 11290 | -4/Warlord | Identified Exp. Phase Shifter 11295 | -4/Warlord | Found Prototype Reactor 11366 | -4/Warlord | Identified RU-N14's Throwing Claymores v3 (x2) 11422 | -4/Warlord | Warlord forces counterattacked 11424 | -4/Warlord | Spotted Executioner 11424 | -4/Warlord | Spotted Striker 11447 | -4/Warlord | Allies destroyed Striker 11452 | -4/Warlord | Destroyed 12 combat bots 11481 | -4/Warlord | Spotted Executioner 11493 | -4/Warlord | Spotted B-90 Cyclops 11494 | -4/Warlord | Spotted B-86 Titan 11514 | -4/Warlord | Discovered new exit (range 9) 11525 | -4/Warlord | Identified exit to Proximity Caves 11526 | -4/Warlord | Entered Proximity Caves 11738 | -3/Proximity Caves | Build established: Mutant 11895 | -3/Proximity Caves | Discovered new exit (range 18) 11986 | -3/Proximity Caves | Identified exit to Research 11988 | -3/Proximity Caves | Entered Research 11988 | -3/Research | Evolved 2 slots: Power x1, Weapon x1 11989 | -3/Research | Identified exit to Research 11989 | -3/Research | Identified exit to Quarantine 12092 | -3/Research | Build established: Scavenger-Mutant 12128 | -3/Research | Identified Vortex Chain Reactor 12441 | -3/Research | Cargo convoy interrupted 12444 | -3/Research | Garrison activated, responded to threat 12446 | -3/Research | Spotted Striker 12446 | -3/Research | Spotted Striker 12458 | -3/Research | Destroyed Striker 12468 | -3/Research | System corruption reached 10% 12469 | -3/Research | Destroyed Striker 12512 | -3/Research | Found Prototype Protection 12515 | -3/Research | Found Prototype Slashing Weapon 12518 | -3/Research | Destroyed 11 combat bots 12519 | -3/Research | Found Prototype Slashing Weapon 12524 | -3/Research | Lost 10 parts (1p4n2u3w) 12564 | -3/Research | Core integrity fell below 50% 12566 | -3/Research | Released all parts (6) 12571 | -3/Research | Identified Molecular Scythe (x2) 12574 | -3/Research | Identified Centrium Heavy Armor Plating 12593 | -3/Research | Lost 6 parts (3n1u2w) 12626 | -3/Research | Found Prototype Protection 12626 | -3/Research | Identified Active Cooling Armor 12671 | -3/Research | Warped through subspace 12771 | -3/Research | Core integrity fell below 20% 12802 | -3/Research | Spotted B-86 Titan 12810 | -3/Research | Released all parts (4) 12841 | -3/Research | Lost 4 parts (1p3n) 12845 | -3/Research | Build established: Mutant 12905 | -3/Research | Destroyed by C-35 Carver with Improved Concussive RPG Last Messages --------------- 12872_ LK|%5G:FLE6LGM5JM9D% 12886_ Acquired Plasma Cutter. 12895_ Triggered Alarm Trap. 12895_ An alarm sounds. 12895_ ALERT: Alarm triggered, dispatching investigation squad. 12898_ System corrupted: Heat flow error (+129). 12898_ ALERT: Suspicious intruders detected, dispatching Cutter reinforcements to area. 12899_ Connecting with Terminal... Feedback: System corruption (+1%). 12899_ ALERT: Suspicious activity at Terminal R017. Dispatching Investigation squad. 12905_ W-44 Eye sends out distress signal. 12905_ Plasma Cutter destroyed. 12905_ W-44 Eye knocked back. 12905_ Knocked back. 12905_ C-35 Carver knocked back. 12905_ W-44 Eye knocked back. 12905_ Backup Laser III destroyed. 12905_ Knocked back. Map ----- +----------------------------------------------------+ | """ # #????????????????????????????? | | """ # #????????????????????????????? | | "" ##############????????????????????????????? | | #?????????????????????????????????????????? | | #?????????????????????????????????????????? | | #?????????????????????????????????????????? | | #?????????????????????????????????????????? | | #?????????????????????????????????????????? | | ??????????????????????????????????????????? | | ??????????????????????????????????????????? | | ?? ??????????????????????????????????????????? | | ???? ??????????????????????????????????????????? | | ?????????????????????????????????????????????????? | | ?????????????????????????????????????????????????? | | ?????????????????????????????????????????????????? | | ?????????????????????????????????????????????????? | | ??????????????????????S??????????????????????????? | | ??????????????????????""????????????? ??????????? | | ??????????????????????""???????????? ???????????? | | ????????????p?????????? ########?? ????????????? | | ??????????p???????????? # # # #? ??????????????? | | ??????????? ######+### # # #+####??????????? | | ??????????? #??????????? | | ?????????? cw #??????????? | | ?????????? c c #??????????? | | ?????????? @ ch #??????????? | | ?????????????????###### #####H#???????????? | | ??????????????????????# #???h??????####### | | ??????????????????????# #?????????# """ | | ??????????????????????# #??h??????# ""S" | | ??????????????????????# ##?????????# "" " | | ??????????????????????# #????#?????# | | ??????????????????????# " " ####h#?????# | | ??????????????????????# "Y" + +?????# | | ??????????????????????# """ #w####?????? | | ??????????????????????########### ###????????? | | ??????????????????????????????# *############+# | | ??????????????????????????????# "" | | ??????????????????????????????+ T | | ??????????????????????????????# | | ????????????????????+?????????# =############+# | | ??????????????????????????????## ##????????????? | | ???????????????????????????????# #?????????????? | | ???????????????????????????????# ?????????????? | | ???????????????????????????????# #?????????????? | | ??????????????????????????????? #?????????????? | | ??????????????????????????????###+##?????????????? | | ?????????????????????????????????????????????????? | | ?????????????????????????????????????????????????? | | ?????????????????????????????????????????????????? | +----------------------------------------------------+ Best States ------------- Heat Dissipation 106 Energy Generation 65 Energy Capacity 725 Matter Stores 421 Matter Capacity 600 Sight Range 24 Terrain Scan Range 20 Terrain Scan Density 85 Power Amplification 30 Additional Mass Support 9 Armor Coverage 1650 Phase Shifting 20 Evasion (%) 65 Melee Accuracy 24 Recoil Reduction 8 Salvage Targeting 4 Offensive Hacking 14 Defensive Hacking 20 Item Schematics ----------------- Lgt. Armor Plating | -8/Materials | Scanalyzed Xenon Bombardment Thruster | -8/Materials | Scanalyzed Variable Charge Gun | -7/Zion | Archive Mak. Sword | -7/Zion | Archive Lgt. Fission Core | -7/Zion | Archive Focal Shield | -7/Zion | Archive Hvy. Laser | -7/Zion | Archive Matter Compressor | -7/Zion | Archive Ripper | -7/Zion | Archive System Guard | -7/Zion | Archive Mak. Axe | -7/Zion | Archive Wave Gun | -7/Zion | Archive Imp. Armor Integrity Analyzer | -7/Zion | Archive Mak. Leg | -7/Zion | Archive Hvy. Plasma Cannon | -7/Zion | Archive Mak. Terrain Scan Processor | -7/Zion | Archive Riot Gun | -7/Zion | Free Hvy. Riot Gun | -7/Zion | Free Slug Cannon | -7/Zion | Free Combat Drone Bay | -6/Data Miner | Free Lgt. Regenerative Plating | -6/Data Miner | Free Cld. Nuclear Pulse Thruster | -6/Data Miner | Free Imp. Thermal Defense Suite | -6/Data Miner | Free Thunder Hammer | -6/Data Miner | Free Imp. Gyrokinetic Inverter | -6/Data Miner | Free Adv. Particle Charger | -6/Data Miner | Free Hvy. Neutron Cannon | -6/Data Miner | Free Field Propulsion Drive | -6/Data Miner | Free Imp. Heavy Siege Treads | -6/Data Miner | Free Assault Drone Bay | -5/Zhirov | Free Exp. Heat Sink | -5/Zhirov | Free Exp. Optical Array | -5/Zhirov | Free Imp. Arc Thrower | -5/Zhirov | Free Robot Schematics ------------------ R-06 Scavenger | -7/Zion | Archive T-07 Excavator | -7/Zion | Archive C-57 Dissector | -7/Zion | Archive H-55 Commando | -7/Zion | Archive H-66 Slayer | -6/Data Miner | Free A-15 Conveyor | -6/Data Miner | Free B-48 Gladiator | -6/Data Miner | Free A-27 Freighter | -6/Data Miner | Free G-50 Soldier | -6/Data Miner | Free Fabricated ------------ W-25 Informer | x2 | -7/Factory | Preloaded Alien Tech Used ----------------- Integrated Reactor Transdimensional Reconstructor Achievements -------------- None Challenges ------------ None Game ------ Seed CoolingBottomlessProtection Manual? 0 Play Time 02:16:54 Cumulative 431.6 hours Start 2021.11.20 @ 20:38:55 End 2021.11.24 @ 19:24:39 Sessions 15 Manual Loads 0 Difficulty Rogue Special Mode None Game No. 412 Rogue 197 Adventurer 112 Explorer 103 Win Type - Total 29 Types 21/0/5/2/0/0/0/1/0 Lore% 86 Gallery% 90 Achievement% 80 Wizard Run 0 Options --------- ASCII 0 Keyboard 1 Movement Vi Keybinds 1 Fullscreen 2 Font 12/Terminus Map View 76x56 Tactical HUD 1 Map Filters NONE Filters NONE Steam 1 RUN: 0b7cf0fa-4dfb-47eb-8025-30e062953a96